fUSD/lending_fUSD_20240713
["ID","MTS","AMOUNT","RATE_DAILY","PERIOD"]
[331945604,1720884631849,-1426.62952569,0.000118,2]
[331945605,1720884631858,-500.0,0.00012082,2]
[331945606,1720884631868,-600.0,0.00012082,2]
[331945607,1720884631877,-300.0,0.00012272,2]
[331945608,1720884631887,-2204.95837318,0.00012273,2]
[331945609,1720884631896,-155.0,0.00012273,2]
[331945610,1720884631905,-194.70414774,0.00012302,2]
[331945611,1720884631915,-1265.84016916,0.00012302,2]
[331945612,1720884631923,-196.65850358,0.00012302,2]
[331945613,1720884631932,-1768.89570115,0.00012302,2]
[331945614,1720884631942,-1254.37978228,0.00012302,2]
[331945615,1720884631952,-624.40925396,0.00012314,2]
[331945616,1720884631962,-155.0,0.00012314,2]
[331945617,1720884631972,-624.40925396,0.00012314,2]
[331945618,1720884631981,-199.07,0.00012443,2]
[331945619,1720884631990,-182.51585465,0.0001251,2]
[331945620,1720884631999,-1000.0,0.00012547,2]
[331945621,1720884632008,-250.0,0.00012607,2]
[331945622,1720884632018,-200.0,0.00012615,2]
[331945623,1720884632028,-4169.41,0.00012627,2]
[331945624,1720884632038,-250.0,0.00012667,2]
[331945625,1720884632048,-3153.87,0.00012667,2]
[331945626,1720884632058,-247.76,0.00012707,2]
[331945628,1720884632068,-177.5,0.00012904,2]
[331945630,1720884632079,-500.0,0.00012904,2]
[331945632,1720884632088,-600.0,0.00012904,2]
[331945633,1720884632097,-646.74,0.00012958,2]
[331945634,1720884632106,-177.51,0.00012967,2]
[331945635,1720884632116,-1250.0,0.00013,2]
[331945636,1720884632126,-383.32,0.00013,2]
[331945637,1720884632137,-150.0,0.00013127,2]
[331945638,1720884632147,-2740.42496403,0.00013128,2]
[331945639,1720884632158,-5032.46488387,0.00013272,2]
[331945640,1720884632170,-420.0,0.00013468,2]
[331945641,1720884632180,-316.0773283,0.00013472,2]
[331945642,1720884632190,-524.03925994,0.00013472,2]
[331945643,1720884632199,-208.31669417,0.00013472,2]
[331945644,1720884632209,-169.80226746,0.00013472,2]
[331945645,1720884632219,-300.491707,0.00013515,2]
[331945646,1720884632230,-231.767918,0.00013515,2]
[331945647,1720884632240,-2169.029601,0.00013515,2]
[331945648,1720884632251,-186.42838529,0.00013516,2]
[331945649,1720884632260,-1072.16482879,0.00013516,2]
[331945650,1720884632269,-366.20311967,0.00013516,2]
[331945651,1720884632279,-206.12127078,0.00013516,2]
[331945652,1720884632288,-216.64783529,0.00013516,2]
[331945653,1720884632298,-254.48154078,0.00013543,2]
[331945654,1720884632309,-241.61284913,0.00013543,2]
[331945655,1720884632320,-722.09432961,0.00013543,2]
[331945656,1720884632331,-364.69674518,0.00013543,2]
[331945657,1720884632340,-889.96342784,0.00013648,2]
[331945658,1720884632350,-356.60665527,0.00013648,2]
[331945659,1720884632359,-155.0,0.00013648,2]
[331945660,1720884632368,-300.491707,0.00013684,2]
[331945661,1720884632377,-231.767918,0.00013684,2]
[331945662,1720884632386,-2169.029601,0.00013684,2]
[331945663,1720884632396,-1003.98,0.00013699,2]
[331945664,1720884632405,-1625.92,0.00013699,2]
[331945665,1720884632415,-267.2,0.00013699,5]
[331945666,1720884632425,-5000.0,0.000137,2]
[331945667,1720884632434,-500.0,0.00013726,2]
[331945668,1720884632444,-600.0,0.00013726,2]
[331945669,1720884632454,-6256.78374572,0.00013797,2]
[331945670,1720884632464,-331.6237,0.00013817,2]
[331945671,1720884632472,-300.491707,0.00013853,2]
[331945672,1720884632482,-231.767918,0.00013853,2]
[331945673,1720884632491,-2169.029601,0.00013853,2]
[331945674,1720884632501,-2243.92377,0.0001386,2]
[331945675,1720884632511,-500.0,0.00013879,2]
[331945676,1720884632520,-500.0,0.00013879,2]
[331945677,1720884632530,-227291.87128437,0.0001388,2]
[331945678,1720884632539,-182.25416917,0.0001388,2]
[331945679,1720884632549,-500.0,0.00013888,2]
[331945680,1720884632558,-200.0,0.00013888,2]
[331945681,1720884632567,-155.0,0.00013889,2]
[331945682,1720884632577,-550.35385455,0.00013889,2]
[331945683,1720884632586,-155.0,0.00013889,2]
[331945684,1720884632595,-219.6,0.0001389,3]
[331945685,1720884632604,-181.08838766,0.00013899,2]
[331945686,1720884632613,-155.0,0.00013899,2]
[331945687,1720884632622,-341.14816906,0.000139,2]
[331945688,1720884632632,-10000.0,0.000139,2]
[331945689,1720884632641,-855.0314,0.000139,2]
[331945690,1720884632650,-208.725,0.000139,2]
[331945691,1720884632659,-7470.65,0.000139,2]
[331945692,1720884632668,-182.25416916,0.000139,2]
[331945693,1720884632678,-500.0,0.00013934,2]
[331945694,1720884632687,-500.0,0.00013934,2]
[331945695,1720884632696,-415.256,0.0001398,2]
[331945696,1720884632705,-1068.865,0.0001398,2]
[331945697,1720884632715,-5183.0,0.0001398,2]
[331945698,1720884632726,-1829.0,0.0001398,2]
[331945699,1720884632739,-200.45409437,0.00013989,2]
[331945700,1720884632753,-500.0,0.00013989,2]
[331945701,1720884632764,-501.21825717,0.00013989,2]
[331945702,1720884632774,-193.46877478,0.00013989,2]
[331945703,1720884632784,-500.0,0.00013989,2]
[331945704,1720884632794,-500.0,0.00013989,2]
[331945705,1720884632803,-500.0,0.00013989,2]
[331945706,1720884632814,-500.0,0.00013989,2]
[331945707,1720884632826,-175.96,0.00013989,2]
[331945708,1720884632837,-514.95,0.00013989,2]
[331945709,1720884632847,-156.99,0.00013989,2]
[331945710,1720884632857,-500.0,0.00013989,2]
[331945711,1720884632866,-500.0,0.00013989,2]
[331945712,1720884632876,-325.45,0.00013989,2]
[331945713,1720884632886,-492.36,0.00013989,2]
[331945714,1720884632896,-500.0,0.00013989,2]
[331945715,1720884632906,-220.7,0.00013989,2]
[331945716,1720884632917,-170.86,0.00013989,2]
[331945717,1720884632928,-500.0,0.00013989,2]
[331945718,1720884632938,-336.79,0.00013989,2]
[331945719,1720884632947,-500.0,0.00013989,2]
[331945720,1720884632960,-501.07610147,0.00013989,2]
[331945721,1720884632971,-500.71816641,0.00013989,2]
[331945722,1720884632981,-501.12957727,0.00013989,2]
[331945723,1720884632990,-500.0,0.00013989,2]
[331945724,1720884633000,-501.10885114,0.00013989,2]
[331945725,1720884633009,-512.07084526,0.00013989,2]
[331945726,1720884633019,-219.5,0.00013989,2]
[331945727,1720884633029,-509.91098429,0.00013989,2]
[331945728,1720884633038,-402.70025067,0.00013989,2]
[331945729,1720884633048,-500.0,0.00013989,2]
[331945730,1720884633058,-500.0,0.00013989,2]
[331945731,1720884633068,-500.78375844,0.00013989,2]
[331945732,1720884633077,-500.0,0.00013989,2]
[331945733,1720884633087,-501.14755006,0.00013989,2]
[331945734,1720884633097,-501.14913093,0.00013989,2]
[331945735,1720884633107,-500.0,0.00013989,2]
[331945736,1720884633116,-1353.05,0.00013989,2]
[331945737,1720884633127,-500.0,0.00013989,2]
[331945738,1720884633137,-264.88681266,0.00013989,2]
[331945739,1720884633147,-155.66736473,0.00013989,2]
[331945740,1720884633157,-235.73255968,0.00013989,2]
[331945741,1720884633166,-500.0,0.00013989,2]
[331945742,1720884633176,-155.28352034,0.00013989,2]
[331945743,1720884633186,-155.47518601,0.00013989,2]
[331945744,1720884633196,-159.06957682,0.00013989,2]
[331945745,1720884633207,-155.30328466,0.00013989,2]
[331945746,1720884633216,-155.0,0.00013989,2]
[331945747,1720884633226,-5302.4924633,0.0001399,2]
[331945748,1720884633236,-4062.9487706,0.0001399,2]
[331945749,1720884633246,-2823.4050778,0.0001399,2]
[331945750,1720884633256,-1583.8613851,0.0001399,2]
[331945751,1720884633266,-344.3176924,0.0001399,2]
[331945752,1720884633275,-4772.5465623,0.0001399,2]
[331945753,1720884633286,-3657.3694097,0.0001399,2]
[331945754,1720884633295,-2542.192257,0.0001399,2]
[331945755,1720884633305,-1427.0151044,0.0001399,2]
[331945756,1720884633315,-311.8379518,0.0001399,2]
[331945757,1720884633324,-500.0,0.00013998,2]
[331945758,1720884633335,-356.47538865,0.00013998,2]
[331945759,1720884633344,-199.07,0.00013999,2]
[331945760,1720884633354,-500.0,0.00013999,2]
[331945761,1720884633363,-211.46343877,0.00013999,2]
[331945762,1720884633373,-500.0,0.00013999,2]
[331945763,1720884633382,-500.0,0.00013999,2]
[331945764,1720884633392,-500.0,0.00013999,2]
[331945765,1720884633402,-500.0,0.00013999,2]
[331945766,1720884633411,-500.0,0.00013999,2]
[331945767,1720884633420,-525.05962265,0.00013999,2]
[331945768,1720884633430,-3054.87537082,0.00013999,2]
[331945769,1720884633439,-510.63,0.00013999,2]
[331945770,1720884633449,-522.39,0.00013999,2]
[331945771,1720884633459,-500.0,0.00013999,2]
[331945772,1720884633469,-500.0,0.00013999,2]
[331945773,1720884633479,-500.0,0.00013999,2]
[331945774,1720884633489,-500.0,0.00013999,2]
[331945775,1720884633498,-174.5824317,0.00013999,2]
[331945776,1720884633550,155.05422366,0.00011199,2]
[331945779,1720884637827,-605.61078592,0.00013128,2]
[331945780,1720884637839,-4735.58852639,0.00013128,2]
[331945781,1720884637880,-61.68550012,0.00013128,2]
[331945782,1720884637890,-420.80156831,0.00013472,2]
[331945783,1720884637900,-435.06093252,0.00013516,2]
[331945784,1720884637910,-889.96342784,0.00013516,2]
[331945785,1720884637920,-80.35070964,0.000137,2]
[331945786,1720884637931,-406.46916604,0.000137,2]
[331945787,1720884637942,-214.90712432,0.000137,2]
[331945788,1720884637951,-500.0,0.00013879,2]
[331945789,1720884637964,-285.08418422,0.00013879,2]
[331945790,1720884637978,-215.53581578,0.00013879,2]
[331945791,1720884637988,-500.0,0.00013879,2]
[331945792,1720884637998,-120.23418422,0.00013899,2]
[331945793,1720884638015,-86.16882059,0.00013899,2]
[331945794,1720884638026,-264.88681266,0.00013899,2]
[331945795,1720884638037,-500.62,0.00013934,2]
[331945796,1720884638047,-402.69470904,0.00013999,2]
[331945797,1720884638056,-500.0,0.00013999,2]
[331945798,1720884638066,-481.24250635,0.00013999,2]
[331945799,1720884638075,-506.62994774,0.00013999,2]
[331945800,1720884638084,-502.91094226,0.00013999,2]
[331945801,1720884638094,-500.0,0.00013999,2]
[331945802,1720884638104,-258.32806266,0.00013999,2]
[331945803,1720884638113,-500.0,0.00013999,2]
[331945804,1720884638124,-500.0,0.00013999,2]
[331945805,1720884638134,-500.0,0.00013999,2]
[331945806,1720884638144,-143.01025689,0.00013999,2]
[331945808,1720884638155,-360.11784458,0.00013999,2]
[331945810,1720884638164,-501.72825082,0.00013999,2]
[331945812,1720884638174,-234.26407341,0.00013999,2]
[331945814,1720884638183,-502.31377393,0.00013999,2]
[331945816,1720884638193,-500.0,0.00013999,2]
[331945818,1720884638203,-169.18,0.00013999,2]
[331945820,1720884638213,-500.0,0.00013999,2]
[331945822,1720884638222,-505.8240138,0.00013999,2]
[331945824,1720884638231,-400.0,0.00013999,2]
[331945826,1720884638241,-506.22295155,0.00013999,2]
[331945828,1720884638250,-424.62508502,0.00013999,2]
[331945831,1720884638260,-345.39866837,0.00013999,2]
[331945833,1720884638270,-500.0,0.00013999,2]
[331945835,1720884638281,-500.0,0.00013999,2]
[331945853,1720884638443,-502.48804277,0.00013999,2]
[331945855,1720884638452,-170.84691165,0.00013999,2]
[331945857,1720884638464,-390.63308835,0.00013999,2]
[331945859,1720884638474,-553.04979993,0.00013999,2]
[331945861,1720884638483,-318.8902755,0.00013999,2]
[331945864,1720884638495,-233.09065167,0.00013999,2]
[331945866,1720884638505,-511.34000659,0.00013999,2]
[331945868,1720884638514,-514.16100632,0.00013999,2]
[331945870,1720884638524,-526.27186836,0.00013999,2]
[331945872,1720884638534,-242.1680482,0.00013999,2]
[331945873,1720884638543,-544.66750194,0.00013999,2]
[331945875,1720884638552,-306.59445791,0.00013999,2]
[331945877,1720884638561,-533.77458541,0.00013999,2]
[331945879,1720884638570,-513.89105622,0.00013999,2]
[331945881,1720884638580,-500.0,0.00013999,2]
[331945883,1720884638590,-502.27785227,0.00013999,2]
[331945885,1720884638599,-630.17,0.00013999,2]
[331945887,1720884638608,-634.15800825,0.00013999,2]
[331945889,1720884638618,-512.25056841,0.00013999,2]
[331945891,1720884638627,-509.86259241,0.00013999,2]
[331945893,1720884638636,-510.5102096,0.00013999,2]
[331945895,1720884638645,-500.0,0.00013999,2]
[331945897,1720884638655,-217.61109391,0.00013999,2]
[331945899,1720884638664,-500.0,0.00013999,2]
[331945901,1720884638674,-501.66203251,0.00013999,2]
[331945903,1720884638684,-621.18,0.00013999,2]
[331945905,1720884638693,-500.0,0.00013999,2]
[331945907,1720884638703,-1798.15847079,0.00013999,2]
[331945909,1720884638715,-201.84152921,0.00013999,2]
[331945911,1720884638724,-498.56555733,0.00013999,2]
[331945915,1720884638754,-500.62,0.00013989,2]
[331945917,1720884638764,-5.64973778,0.00013999,2]
[331945919,1720884638773,-510.97390687,0.00013999,2]
[331945921,1720884638784,-297.48,0.00013999,2]
[331945923,1720884638794,-523.35756834,0.00013999,2]
[331945925,1720884638803,-500.0,0.00013999,2]
[331945927,1720884638813,-426.24405758,0.00013999,2]
[331945929,1720884638827,-637.09891316,0.00013999,2]
[331945931,1720884638838,-510.62973547,0.00013999,2]
[331945933,1720884638847,-505.32116916,0.00013999,2]
[331945936,1720884638857,-500.0,0.00013999,2]
[331945938,1720884638867,-509.30694691,0.00013999,2]
[331945940,1720884638877,-509.15177393,0.00013999,2]
[331945942,1720884638887,-509.07537231,0.00013999,2]
[331945944,1720884638896,-789.51,0.00013999,2]
[331945946,1720884638906,-514.46147352,0.00013999,2]
[331945948,1720884638915,-241.51251976,0.00013999,2]
[331945949,1720884638925,-187.3,0.00013999,2]
[331945951,1720884638934,-218.14164558,0.00013999,2]
[331945953,1720884638943,-515.35,0.00013999,2]
[331945955,1720884638953,-610.66,0.00013999,2]
[331945957,1720884638964,-514.04912333,0.00013999,2]
[331945959,1720884638974,-514.14466749,0.00013999,2]
[331945961,1720884638983,-275.25785035,0.00013999,2]
[331945963,1720884638992,-506.20542775,0.00013999,2]
[331945965,1720884639002,-508.3220343,0.00013999,2]
[331945966,1720884639011,-686.6,0.00013999,2]
[331945967,1720884639021,-508.45531439,0.00013999,2]
[331945968,1720884639030,-500.0,0.00013999,2]
[331945969,1720884639040,-500.0,0.00013999,2]
[331945970,1720884639049,-162.04,0.00013999,2]
[331945971,1720884639059,-360.96,0.00013999,2]
[331945973,1720884639068,-500.0,0.00013999,2]
[331945975,1720884639078,-500.0,0.00013999,2]
[331945977,1720884639088,-511.84854522,0.00013999,2]
[331945979,1720884639099,-500.0,0.00013999,2]
[331945980,1720884639113,-507.92194264,0.00013999,2]
[331945981,1720884639122,-598.21068348,0.00013999,2]
[331945982,1720884639132,-513.63,0.00013999,2]
[331945983,1720884639141,-500.0,0.00013999,2]
[331945984,1720884639150,-500.0,0.00013999,2]
[331945985,1720884639160,-608.41,0.00013999,2]
[331945986,1720884639170,-500.0,0.00013999,2]
[331945987,1720884639180,-202.04181263,0.00013999,2]
[331945988,1720884639191,-508.8283753,0.00013999,2]
[331945989,1720884639201,-568.03031152,0.00013999,2]
[331945990,1720884639210,-220.04068412,0.00013999,2]
[331945991,1720884639220,-506.30327186,0.00013999,2]
[331945992,1720884639229,-796.07,0.00013999,2]
[331945993,1720884639239,-500.0,0.00013999,2]
[331945994,1720884639248,-500.0,0.00013999,2]
[331945995,1720884639257,-500.0,0.00013999,2]
[331945996,1720884639267,-510.17743929,0.00013999,2]
[331945997,1720884639276,-500.0,0.00013999,2]
[331945998,1720884639286,-500.0,0.00013999,2]
[331945999,1720884639295,-500.0,0.00013999,2]
[331946000,1720884639304,-508.80920837,0.00013999,2]
[331946001,1720884639314,-510.12247582,0.00013999,2]
[331946002,1720884639324,-564.59,0.00013999,2]
[331946003,1720884639333,-500.0,0.00013999,2]
[331946004,1720884639342,-504.46401981,0.00013999,2]
[331946005,1720884639352,-536.33,0.00013999,2]
[331946006,1720884639361,-503.20742188,0.00013999,2]
[331946007,1720884639370,-500.0,0.00013999,2]
[331946008,1720884639380,-700.96,0.00013999,2]
[331946009,1720884639389,-500.0,0.00013999,2]
[331946010,1720884639399,-510.75141788,0.00013999,2]
[331946011,1720884639408,-445.14829618,0.00013999,2]
[331946012,1720884639418,-858.23,0.00013999,2]
[331946013,1720884639436,-500.0,0.00013999,2]
[331946014,1720884639446,-500.0,0.00013999,2]
[331946015,1720884639455,-485.5389811,0.00013999,2]
[331946016,1720884639465,-645.68916508,0.00013999,2]
[331946017,1720884639475,-196.12781255,0.00013999,2]
[331946018,1720884639485,-500.0,0.00013999,2]
[331946019,1720884639495,-4068.88,0.00013999,2]
[331946020,1720884639505,-556.77166069,0.00013999,2]
[331946021,1720884639515,-530.47894412,0.00013999,2]
[331946022,1720884639525,-500.0,0.00013999,2]
[331946023,1720884639535,-500.0,0.00013999,2]
[331946024,1720884639545,-500.66984588,0.00013999,2]
[331946025,1720884639555,-500.0,0.00013999,2]
[331946026,1720884639565,-500.0,0.00013999,2]
[331946027,1720884639574,-220.17,0.00013999,2]
[331946028,1720884639584,-504.96896736,0.00013999,2]
[331946029,1720884639593,-500.0,0.00013999,2]
[331946030,1720884639603,-500.0,0.00013999,2]
[331946031,1720884639612,-500.0,0.00013999,2]
[331946032,1720884639622,-500.0,0.00013999,2]
[331946033,1720884639631,-1652.15,0.00013999,2]
[331946034,1720884639641,-500.0,0.00013999,2]
[331946035,1720884639651,-754.79,0.00013999,2]
[331946036,1720884639660,-500.0,0.00013999,2]
[331946037,1720884639670,-159.93071568,0.00013999,2]
[331946038,1720884639680,-431.4902129,0.00013999,2]
[331946039,1720884639690,-155.17791559,0.00013999,2]
[331946040,1720884639700,-328.82033738,0.00013999,2]
[331946041,1720884639709,-500.0,0.00013999,2]
[331946042,1720884639719,-3732.42,0.00013999,2]
[331946043,1720884639729,-500.0,0.00013999,2]
[331946044,1720884639739,-1032.98,0.00013999,2]
[331946045,1720884639752,-500.0,0.00013999,2]
[331946046,1720884639761,-290.0,0.00013999,2]
[331946047,1720884639771,-500.0,0.00013999,2]
[331946048,1720884639781,-500.0,0.00013999,2]
[331946049,1720884639791,-500.0,0.00013999,2]
[331946050,1720884639801,-500.0,0.00013999,2]
[331946051,1720884639811,-500.0,0.00013999,2]
[331946052,1720884639820,-500.0,0.00013999,2]
[331946053,1720884639832,-90933.65401649,0.00014,2]
[331946054,1720884639841,-95450.21179014,0.00014,2]
[331946069,1720884641063,-475.30500002,0.00014,2]
[331946070,1720884641313,-619.15328092,0.00013278,2]
[331946113,1720884642798,-500.0,0.0001126,2]
[331946114,1720884642808,-1005.82246875,0.00013278,2]
[331946115,1720884642818,-7962.77753126,0.00014,2]
[331946125,1720884644154,-494.12877982,0.00014,2]
[331946126,1720884644167,-3805.28712995,0.00014,2]
[331946127,1720884644906,-135891.24425025,0.00014,2]
[331946128,1720884644918,-1582.8093,0.00014,2]
[331946151,1720884645849,-500.0,0.00012904,2]
[331946153,1720884645859,-950.087386,0.00013648,2]
[331946156,1720884645919,-864.03767141,0.00013648,2]
[331946157,1720884645929,-363.84379858,0.00013648,2]
[331946158,1720884645939,-431.4902129,0.00013989,2]
[331946159,1720884645948,-282.18831711,0.00014,2]
[331946160,1720884646097,-765.67486631,0.00014,2]
[331946161,1720884646109,-324.95834368,0.00014,2]
[331946162,1720884646121,-263.31613525,0.00014,2]
[331946163,1720884646133,-550.18428788,0.00014,2]
[331946168,1720884646498,-576.72764948,0.00014,2]
[331946169,1720884721699,-500.0,0.0001126,2]
[331946171,1720884721748,-51.25364811,0.0001126,2]
[331946175,1720884722077,-448.74635189,0.0001126,2]
[331946178,1720884752722,211.08051698,0.00011199,2]
[331946179,1720884752768,2308.7190597,0.00011199,2]
[331946180,1720884752792,25538.9031817,0.00011199,2]
[331946181,1720884782307,960.71865013,0.00011199,2]
[331946182,1720884813802,4831.86254612,0.00011199,2]
[331946183,1720884882315,959.60119361,0.00011199,2]
[331946184,1720884883347,1500.0,0.00011199,2]
[331946188,1720884925454,1648.38899038,0.00011199,2]
[331946189,1720884968483,651.8920518,0.00011199,2]
[331946190,1720884976703,2779.8681149,0.00011199,2]
[331946191,1720884988972,356.60665527,0.00011199,2]
[331946192,1720885027585,789.53746221,0.00011199,2]
[331946193,1720885038935,626.38,0.00010835,2]
[331946202,1720885058693,205.4353331,0.00011199,2]
[331946203,1720885069697,586.03921787,0.00011199,2]
[331946204,1720885104257,269.87925437,0.00011199,2]
[331946205,1720885116372,155.0,0.00011199,2]
[331946206,1720885131367,155.0,0.00011199,2]
[331946207,1720885166459,1903.65279599,0.00011199,2]
[331946208,1720885226582,789.20386863,0.00011199,2]
[331946209,1720885379120,515.63745664,0.00011199,2]
[331946210,1720885387068,7893.66864256,0.00011199,2]
[331946211,1720885422948,355.81527189,0.00011199,2]
[331946212,1720885456351,1866.16570766,0.00011199,2]
[331946213,1720885486924,227.34202992,0.00011199,2]
[331946214,1720885495756,1251.96180501,0.00011199,2]
[331946215,1720885541537,2725.38321287,0.00011199,2]
[331946216,1720885569065,343.42090323,0.00011199,2]
[331946217,1720885628255,4626.76923557,0.00011199,2]
[331946252,1720885638495,429.87569652,0.00011199,2]
[331946253,1720885653390,389.71811363,0.00011199,2]
[331946254,1720885659497,155.0,0.00011199,2]
[331946255,1720885670859,155.0,0.00011199,2]
[331946259,1720885713467,255.03,0.00011199,2]
[331946260,1720885744974,1342.48292623,0.00011199,2]
[331946266,1720885779817,640.71,0.00010524,2]
[331946270,1720885785670,642.49064778,0.00011199,2]
[331946282,1720885831975,-500.0,0.00012082,2]
[331946283,1720885831984,-54.8849,0.00012082,2]
[331946284,1720885831995,-445.1151,0.00012082,2]
[331946285,1720885832004,-184.98715962,0.00012302,2]
[331946286,1720885832015,-125.01284038,0.00012302,2]
[331946287,1720885832025,-338.03715962,0.00012302,2]
[331946288,1720885832036,-609.67999998,0.00012302,2]
[331946289,1720885832047,-66.91665581,0.00012302,2]
[331946290,1720885832057,-227.34202992,0.00012314,2]
[331946291,1720885832066,-155.0,0.00012314,2]
[331946292,1720885832075,-208.57,0.00012368,2]
[331946293,1720885832084,-134.76143167,0.0001238,2]
[331946294,1720885832101,-9871.13066748,0.0001238,2]
[331946295,1720885832119,-1154.86373683,0.0001238,2]
[331946296,1720885832131,-291.826501,0.0001238,2]
[331946297,1720885832143,-3636.7873841,0.0001238,2]
[331946298,1720885832162,-2735.91027892,0.0001238,2]
[331946299,1720885832171,-198.2,0.00012537,2]
[331946300,1720885832182,-250.0,0.00012661,2]
[331946301,1720885832191,-1.83118781,0.00012672,2]
[331946302,1720885832202,-248.16881219,0.00012672,2]
[331946303,1720885832211,-290.07285991,0.00012701,2]
[331946304,1720885832222,-9.92714009,0.00012701,2]
[331946305,1720885832232,-520.93785991,0.00012709,2]
[331946306,1720885832243,-279.06214009,0.00012709,2]
[331946307,1720885832253,-296.92,0.00012757,2]
[331946308,1720885832262,-127.39574309,0.00012787,2]
[331946309,1720885832273,-513.31425691,0.00012787,2]
[331946310,1720885832283,-160.51,0.00012818,2]
[331946311,1720885832292,-200.0,0.00012869,2]
[331946312,1720885832301,-500.0,0.00012904,2]
[331946313,1720885832310,-500.0,0.00012904,2]
[331946314,1720885832319,-100.99824309,0.00012904,2]
[331946315,1720885832331,-707.38175691,0.00012904,2]
[331946316,1720885832340,-169.01,0.00012958,2]
[331946317,1720885832349,-499.99,0.00012958,2]
[331946318,1720885832358,-1250.0,0.00013,2]
[331946319,1720885832368,-150.0,0.00013,2]
[331946320,1720885832380,-5602.87066756,0.00013128,2]
[331946321,1720885832390,-1181.24886797,0.00013128,2]
[331946322,1720885832402,-825.99999941,0.00013128,2]
[331946323,1720885832413,-450.0,0.00013128,2]
[331946324,1720885832424,-472.53583505,0.00013128,2]
[331946325,1720885832436,-147.17476528,0.00013128,2]
[331946326,1720885832445,-1081.18,0.00013311,2]
[331946327,1720885832454,-3803.98599915,0.000134,2]
[331946328,1720885832465,-4259.61070056,0.000134,2]
[331946329,1720885832477,-35087.2618056,0.000134,2]
[331946351,1720885837860,-155.0,0.00012314,2]
[331946352,1720885837870,-15330.09472608,0.000133,2]
[331946353,1720885837882,-381.33465368,0.000133,2]
[331946354,1720885837924,-88541.58812103,0.000133,2]
[331946355,1720885837936,-1530.03477773,0.000133,2]
[331946356,1720885837947,-850.94665151,0.000133,2]
[331946357,1720885837958,-697.22222227,0.000133,2]
[331946358,1720885837984,-507.54424864,0.00013128,2]
[331946359,1720885837995,-9246.81869558,0.00013128,2]
[331946360,1720885838005,-2465.69755782,0.000133,2]
[331946361,1720885838016,-6239.01624769,0.000133,2]
[331946362,1720885838027,-2063.9565768,0.000133,2]
[331946363,1720885838038,-25302.1915841,0.000133,2]
[331946364,1720885838049,-13353.64654799,0.000133,2]
[331946365,1720885838060,-24275.23380201,0.000133,2]
[331946366,1720885838071,-36603.9080659,0.000133,2]
[331946367,1720885838082,-423.65721882,0.000133,2]
[331946368,1720885838093,-3340.59680603,0.000133,2]
[331946369,1720885838108,-1071.34448737,0.000133,2]
[331946370,1720885838124,-4070.08297907,0.000133,2]
[331946371,1720885838135,-21846.41079636,0.000133,2]
[331946458,1720885839943,-502.38031553,0.000133,2]
[331946459,1720885839955,-832.56119355,0.000133,2]
[331946461,1720885839967,-9342.04283472,0.000133,2]
[331946463,1720885839978,-15562.03572362,0.000133,2]
[331946465,1720885840233,-1705.43033063,0.000133,2]
[331946466,1720885840286,-355.72425126,0.000133,2]
[331946467,1720885840299,-6488.39581319,0.000133,2]
[331946468,1720885840310,-353.436607,0.000133,2]
[331946469,1720885840349,-574.54248244,0.000133,2]
[331946538,1720885843068,-45272.5459308,0.000133,2]
[331946543,1720885844242,-5861.31599453,0.000133,2]
[331946544,1720885844253,-3389.61038232,0.000133,2]
[331946545,1720885844264,-316.24250421,0.000133,2]
[331946546,1720885844279,-12685.77181394,0.000133,2]
[331946547,1720885844288,-192.167322,0.00013416,2]
[331946548,1720885844298,-321.06886542,0.00013443,2]
[331946549,1720885844307,-3712.1900595,0.00013472,2]
[331946550,1720885844316,-1266.09237124,0.00013472,2]